[Event "January 9 Early 2024"]
[Site "https://www.chess.com"]
[Date "2024.01.11"]
[Round "10"]
[White "Gutierrez Carmona, Juan Alejandro"]
[Black "Foisor, Sabina-Francesca"]
[Result "1/2-1/2"]
[Board "196"]
[TimeControl "180+1"]
[WhiteFideId "5106770"]
[BlackFideId "1212915"]
[WhiteElo "2186"]
[BlackElo "2388"]
[WhiteTeam "MEX"]
[BlackTeam "USA"]
[WhiteClock "0:00:08"]
[BlackClock "0:00:35"]

1. e4 {[%clk 0:03:00]}  c5 {[%clk 0:02:59]} 2. Nf3 {[%clk 0:02:44]}  d6 {[%clk 0:02:59]} 3. d4 {[%clk 0:02:42]}  cxd4 {[%clk 0:03:00]} 4. Nxd4 {[%clk 0:02:43]}  Nf6 {[%clk 0:03:01]} 5. Nc3 {[%clk 0:02:43]}  e6 {[%clk 0:02:57]} 6. Be2 {[%clk 0:02:36]}  Be7 {[%clk 0:02:55]} 7. O-O {[%clk 0:02:36]}  a6 {[%clk 0:02:55]} 8. f4 {[%clk 0:02:34]}  O-O {[%clk 0:02:54]} 9. Kh1 {[%clk 0:02:34]}  Nc6 {[%clk 0:02:51]} 10. Nxc6 {[%clk 0:02:33]}  bxc6 {[%clk 0:02:51]} 11. Bf3 {[%clk 0:02:33]}  e5 {[%clk 0:02:47]} 12. fxe5 {[%clk 0:02:02]}  dxe5 {[%clk 0:02:48]} 13. Bg5 {[%clk 0:02:01]}  Be6 {[%clk 0:02:45]} 14. b3 {[%clk 0:01:59]}  Qxd1 {[%clk 0:02:38]} 15. Raxd1 {[%clk 0:01:58]}  h6 {[%clk 0:02:39]} 16. Be3 {[%clk 0:01:46]}  Rfd8 {[%clk 0:02:33]} 17. h3 {[%clk 0:01:43]}  Rxd1 {[%clk 0:02:23]} 18. Rxd1 {[%clk 0:01:42]}  Rd8 {[%clk 0:02:24]} 19. Rxd8+ {[%clk 0:01:37]}  Bxd8 {[%clk 0:02:25]} 20. Kg1 {[%clk 0:01:31]}  Kf8 {[%clk 0:02:24]} 21. Kf1 {[%clk 0:01:30]}  Ke7 {[%clk 0:02:25]} 22. Na4 {[%clk 0:01:30]}  Kd6 {[%clk 0:02:21]} 23. Ke2 {[%clk 0:01:25]}  Nd7 {[%clk 0:02:19]} 24. Kd3 {[%clk 0:01:20]}  Bg5 {[%clk 0:02:03]} 25. Bf2 {[%clk 0:01:09]}  g6 {[%clk 0:01:58]} 26. c4 {[%clk 0:01:02]}  f5 {[%clk 0:01:57]} 27. Kc3 {[%clk 0:00:50]}  Bd8 {[%clk 0:01:49]} 28. Kb4 {[%clk 0:00:40]}  a5+ {[%clk 0:01:39]} 29. Kc3 {[%clk 0:00:38]}  Nf6 {[%clk 0:01:38]} 30. Nc5 {[%clk 0:00:32]}  Bc8 {[%clk 0:01:32]} 31. a3 {[%clk 0:00:24]}  g5 {[%clk 0:01:30]} 32. exf5 {[%clk 0:00:22]}  Bxf5 {[%clk 0:01:29]} 33. Nb7+ {[%clk 0:00:20]}  Kd7 {[%clk 0:01:27]} 34. Nxd8 {[%clk 0:00:19]}  Kxd8 {[%clk 0:01:27]} 35. Bxc6 {[%clk 0:00:19]}  Be4 {[%clk 0:01:24]} 36. Bb6+ {[%clk 0:00:17]}  Kc8 {[%clk 0:01:19]} 37. Bb5 {[%clk 0:00:17]}  Bxg2 {[%clk 0:01:18]} 38. Bxa5 {[%clk 0:00:16]}  Bxh3 {[%clk 0:01:16]} 39. c5 {[%clk 0:00:16]}  g4 {[%clk 0:01:16]} 40. Kd3 {[%clk 0:00:14]}  g3 {[%clk 0:01:16]} 41. Ke3 {[%clk 0:00:11]}  e4 {[%clk 0:01:15]} 42. Be1 {[%clk 0:00:09]}  g2 {[%clk 0:01:14]} 43. Bf2 {[%clk 0:00:08]}  Ng4+ {[%clk 0:01:11]} 44. Ke2 {[%clk 0:00:09]}  Ne5 {[%clk 0:00:50]} 45. Bg1 {[%clk 0:00:09]}  Bg4+ {[%clk 0:00:39]} 46. Ke3 {[%clk 0:00:09]}  Bf5 {[%clk 0:00:38]} 47. Be2 {[%clk 0:00:08]}  Kc7 {[%clk 0:00:34]} 48. Kf2 {[%clk 0:00:07]}  Be6 {[%clk 0:00:30]} 49. b4 {[%clk 0:00:06]}  Nd3+ {[%clk 0:00:31]} 50. Kxg2 {[%clk 0:00:06]}  Nc1 {[%clk 0:00:28]} 51. Kf2 {[%clk 0:00:03]}  h5 {[%clk 0:00:24]} 52. Bxh5 {[%clk 0:00:02]}  Na2 {[%clk 0:00:19]} 53. Ke3 {[%clk 0:00:02]}  Nc3 {[%clk 0:00:18]} 54. Bg6 {[%clk 0:00:02]}  Bd5 {[%clk 0:00:17]} 55. Bf5 {[%clk 0:00:01]}  Kc6 {[%clk 0:00:18]} 56. Bh2 {[%clk 0:00:02]}  Nb1 {[%clk 0:00:17]} 57. Be5 {[%clk 0:00:02]}  Nxa3 {[%clk 0:00:17]} 58. Bxe4 {[%clk 0:00:02]}  Bxe4 {[%clk 0:00:17]} 59. Kxe4 {[%clk 0:00:02]}  Nc2 {[%clk 0:00:18]} 60. Bc3 {[%clk 0:00:02]}  Na3 {[%clk 0:00:16]} 61. Kd3 {[%clk 0:00:02]}  Nb5 {[%clk 0:00:16]} 62. Kc4 {[%clk 0:00:02]}  Nc7 {[%clk 0:00:16]} 63. Bd2 {[%clk 0:00:02]}  Nb5 {[%clk 0:00:16]} 64. Bf4 {[%clk 0:00:03]}  Na7 {[%clk 0:00:16]} 65. Be5 {[%clk 0:00:03]}  Nb5 {[%clk 0:00:17]} 66. Bd4 {[%clk 0:00:03]}  Na3+ {[%clk 0:00:17]} 67. Kb3 {[%clk 0:00:02]}  Nb5 {[%clk 0:00:18]} 68. Bb2 {[%clk 0:00:03]}  Na7 {[%clk 0:00:18]} 69. Ka4 {[%clk 0:00:03]}  Nb5 {[%clk 0:00:19]} 70. Bc1 {[%clk 0:00:03]}  Nc7 {[%clk 0:00:19]} 71. Ka5 {[%clk 0:00:03]}  Nb5 {[%clk 0:00:20]} 72. Bd2 {[%clk 0:00:03]}  Nc7 {[%clk 0:00:20]} 73. Bf4 {[%clk 0:00:04]}  Nb5 {[%clk 0:00:21]} 74. Bg3 {[%clk 0:00:04]}  Nd4 {[%clk 0:00:22]} 75. Bh2 {[%clk 0:00:04]}  Nb5 {[%clk 0:00:23]} 76. Bg3 {[%clk 0:00:04]}  Nc3 {[%clk 0:00:23]} 77. Bf2 {[%clk 0:00:04]}  Nb5 {[%clk 0:00:24]} 78. Be1 {[%clk 0:00:04]}  Nc7 {[%clk 0:00:25]} 79. Bg3 {[%clk 0:00:04]}  Nb5 {[%clk 0:00:26]} 80. Ka6 {[%clk 0:00:04]}  Nd4 {[%clk 0:00:27]} 81. b5+ {[%clk 0:00:04]}  Nxb5 {[%clk 0:00:28]} 82. Bf2 {[%clk 0:00:04]}  Nc3 {[%clk 0:00:28]} 83. Ka5 {[%clk 0:00:05]}  Ne4 {[%clk 0:00:29]} 84. Ka4 {[%clk 0:00:05]}  Nxf2 {[%clk 0:00:29]} 85. Kb3 {[%clk 0:00:04]}  Ne4 {[%clk 0:00:30]} 86. Kc2 {[%clk 0:00:04]}  Nf6 {[%clk 0:00:31]} 87. Kd3 {[%clk 0:00:05]}  Nd7 {[%clk 0:00:32]} 88. Ke4 {[%clk 0:00:05]}  Nb8 {[%clk 0:00:32]} 89. Kd3 {[%clk 0:00:06]}  Na6 {[%clk 0:00:33]} 90. Ke3 {[%clk 0:00:06]}  Nc7 {[%clk 0:00:33]} 91. Kf3 {[%clk 0:00:07]}  Nd5 {[%clk 0:00:34]} 92. Ke4 {[%clk 0:00:07]}  Nb4 {[%clk 0:00:34]} 93. Kf3 {[%clk 0:00:07]}  Nd3 {[%clk 0:00:34]} 94. Ke3 {[%clk 0:00:08]}  Nxc5 {[%clk 0:00:35]} 1/2-1/2

[Event "January 9 Early 2024"]
[Site "https://www.chess.com"]
[Date "2024.01.11"]
[Round "10"]
[White "De Pablo Pena, Miguel Angel"]
[Black "Zhukov, Maksim"]
[Result "1-0"]
[Board "198"]
[TimeControl "180+1"]
[WhiteFideId "2219123"]
[BlackFideId "34181790"]
[WhiteElo "2164"]
[BlackElo "2302"]
[WhiteTeam "ESP"]
[BlackTeam "RUS"]
[WhiteClock "0:00:25"]
[BlackClock "0:00:10"]

1. e4 {[%clk 0:03:00]}  c5 {[%clk 0:02:59]} 2. Nc3 {[%clk 0:03:00]}  e6 {[%clk 0:02:58]} 3. f4 {[%clk 0:03:01]}  a6 {[%clk 0:02:58]} 4. a4 {[%clk 0:03:00]}  b6 {[%clk 0:02:58]} 5. Nf3 {[%clk 0:03:00]}  Bb7 {[%clk 0:02:59]} 6. g3 {[%clk 0:03:01]}  d5 {[%clk 0:02:59]} 7. e5 {[%clk 0:02:29]}  d4 {[%clk 0:02:58]} 8. Nb1 {[%clk 0:02:29]}  h5 {[%clk 0:02:45]} 9. h4 {[%clk 0:02:24]}  Nh6 {[%clk 0:02:38]} 10. Bg2 {[%clk 0:02:22]}  Nf5 {[%clk 0:02:37]} 11. Kf2 {[%clk 0:02:19]}  Be7 {[%clk 0:02:31]} 12. d3 {[%clk 0:02:13]}  Nd7 {[%clk 0:02:28]} 13. Na3 {[%clk 0:02:13]}  Rh6 {[%clk 0:02:23]} 14. Ng5 {[%clk 0:01:57]}  Bxg2 {[%clk 0:02:15]} 15. Kxg2 {[%clk 0:01:58]}  Rg6 {[%clk 0:02:12]} 16. Qf3 {[%clk 0:01:41]}  f6 {[%clk 0:02:01]} 17. Nxe6 {[%clk 0:01:35]}  Qc8 {[%clk 0:01:49]} 18. Qxh5 {[%clk 0:01:01]}  Kf7 {[%clk 0:01:20]} 19. Qxf5 {[%clk 0:00:59]}  Qc6+ {[%clk 0:01:12]} 20. Qe4 {[%clk 0:00:56]}  Qxe6 {[%clk 0:00:25]} 21. Qxa8 {[%clk 0:00:55]}  fxe5 {[%clk 0:00:23]} 22. f5 {[%clk 0:00:47]}  Qxf5 {[%clk 0:00:17]} 23. Rf1 {[%clk 0:00:47]}  Rxg3+ {[%clk 0:00:17]} 24. Kxg3 {[%clk 0:00:47]}  Qxf1 {[%clk 0:00:18]} 25. Qf3+ {[%clk 0:00:48]}  Qxf3+ {[%clk 0:00:17]} 26. Kxf3 {[%clk 0:00:49]}  Bxh4 {[%clk 0:00:18]} 27. Nc4 {[%clk 0:00:48]}  Ke6 {[%clk 0:00:17]} 28. Bd2 {[%clk 0:00:46]}  Bf6 {[%clk 0:00:16]} 29. Be1 {[%clk 0:00:46]}  Kd5 {[%clk 0:00:16]} 30. Bg3 {[%clk 0:00:45]}  b5 {[%clk 0:00:16]} 31. axb5 {[%clk 0:00:44]}  axb5 {[%clk 0:00:17]} 32. Na5 {[%clk 0:00:45]}  Nf8 {[%clk 0:00:16]} 33. Re1 {[%clk 0:00:44]}  Ne6 {[%clk 0:00:16]} 34. Nb3 {[%clk 0:00:42]}  c4 {[%clk 0:00:16]} 35. Nd2 {[%clk 0:00:38]}  cxd3 {[%clk 0:00:13]} 36. cxd3 {[%clk 0:00:38]}  Nc5 {[%clk 0:00:13]} 37. Ke2 {[%clk 0:00:32]}  Bg5 {[%clk 0:00:12]} 38. Ne4 {[%clk 0:00:31]}  Nxe4 {[%clk 0:00:12]} 39. dxe4+ {[%clk 0:00:31]}  Kxe4 {[%clk 0:00:13]} 40. Kf2+ {[%clk 0:00:31]}  Be3+ {[%clk 0:00:12]} 41. Ke2 {[%clk 0:00:27]}  d3+ {[%clk 0:00:12]} 42. Kd1 {[%clk 0:00:28]}  Kf3 {[%clk 0:00:11]} 43. Bxe5 {[%clk 0:00:27]}  g5 {[%clk 0:00:11]} 44. Rf1+ {[%clk 0:00:27]}  Ke4 {[%clk 0:00:10]} 45. Bg3 {[%clk 0:00:23]}  g4 {[%clk 0:00:10]} 46. Rf8 {[%clk 0:00:23]}  b4 {[%clk 0:00:10]} 47. Re8+ {[%clk 0:00:23]}  Kf3 {[%clk 0:00:10]} 48. Be1 {[%clk 0:00:20]}  b3 {[%clk 0:00:10]} 49. Bc3 {[%clk 0:00:19]}  g3 {[%clk 0:00:10]} 50. Rf8+ {[%clk 0:00:20]}  Ke4 {[%clk 0:00:05]} 51. Re8+ {[%clk 0:00:20]}  Kf3 {[%clk 0:00:05]} 52. Rf8+ {[%clk 0:00:20]}  Ke4 {[%clk 0:00:05]} 53. Rg8 {[%clk 0:00:21]}  Kf3 {[%clk 0:00:04]} 54. Bd2 {[%clk 0:00:21]}  Bf2 {[%clk 0:00:03]} 55. Be1 {[%clk 0:00:21]}  g2 {[%clk 0:00:02]} 56. Bxf2 {[%clk 0:00:20]}  Kxf2 {[%clk 0:00:03]} 57. Rf8+ {[%clk 0:00:20]}  Ke3 {[%clk 0:00:03]} 58. Rg8 {[%clk 0:00:20]}  Kf2 {[%clk 0:00:03]} 59. Kd2 {[%clk 0:00:20]}  g1=Q {[%clk 0:00:03]} 60. Rxg1 {[%clk 0:00:20]}  Kxg1 {[%clk 0:00:04]} 61. Kxd3 {[%clk 0:00:20]}  Kf2 {[%clk 0:00:05]} 62. Kc3 {[%clk 0:00:21]}  Ke3 {[%clk 0:00:06]} 63. Kxb3 {[%clk 0:00:22]}  Kd4 {[%clk 0:00:07]} 64. Ka4 {[%clk 0:00:22]}  Kc5 {[%clk 0:00:07]} 65. Ka5 {[%clk 0:00:22]}  Kc6 {[%clk 0:00:03]} 66. b4 {[%clk 0:00:22]}  Kb7 {[%clk 0:00:04]} 67. Kb5 {[%clk 0:00:22]}  Ka7 {[%clk 0:00:04]} 68. Kc6 {[%clk 0:00:22]}  Kb8 {[%clk 0:00:04]} 69. Kb6 {[%clk 0:00:22]}  Ka8 {[%clk 0:00:04]} 70. b5 {[%clk 0:00:23]}  Kb8 {[%clk 0:00:05]} 71. Ka6 {[%clk 0:00:23]}  Ka8 {[%clk 0:00:05]} 72. b6 {[%clk 0:00:23]}  Kb8 {[%clk 0:00:05]} 73. b7 {[%clk 0:00:24]}  Kc7 {[%clk 0:00:05]} 74. Ka7 {[%clk 0:00:25]}  Kc6 {[%clk 0:00:05]} 75. b8=Q {[%clk 0:00:25]}  Kc5 {[%clk 0:00:06]} 76. Qb6+ {[%clk 0:00:25]}  Kc4 {[%clk 0:00:06]} 77. Ka6 {[%clk 0:00:24]}  Kc3 {[%clk 0:00:07]} 78. Kb5 {[%clk 0:00:24]}  Kc2 {[%clk 0:00:08]} 79. Qd4 {[%clk 0:00:24]}  Kb1 {[%clk 0:00:08]} 80. Qd2 {[%clk 0:00:24]}  Ka1 {[%clk 0:00:08]} 81. Kb4 {[%clk 0:00:24]}  Kb1 {[%clk 0:00:09]} 82. Kb3 {[%clk 0:00:25]}  Ka1 {[%clk 0:00:10]} 83. Qc1# {[%clk 0:00:25]} 1-0

[Event "January 9 Early 2024"]
[Site "https://www.chess.com"]
[Date "2024.01.11"]
[Round "10"]
[White "Clawitter, Craig"]
[Black "Winkels, Marcel"]
[Result "1-0"]
[Board "200"]
[TimeControl "180+1"]
[WhiteFideId "2023105"]
[BlackFideId "1003887"]
[WhiteElo "2233"]
[BlackElo "2009"]
[WhiteTeam "USA"]
[BlackTeam "NED"]
[WhiteClock "0:00:06"]
[BlackClock "0:00:11"]

1. e4 {[%clk 0:02:57]}  d5 {[%clk 0:02:58]} 2. exd5 {[%clk 0:02:57]}  Nf6 {[%clk 0:02:59]} 3. Bb5+ {[%clk 0:02:57]}  c6 {[%clk 0:02:58]} 4. dxc6 {[%clk 0:02:54]}  Nxc6 {[%clk 0:02:57]} 5. d4 {[%clk 0:02:42]}  Bd7 {[%clk 0:02:57]} 6. Nf3 {[%clk 0:02:39]}  a6 {[%clk 0:02:54]} 7. Ba4 {[%clk 0:02:30]}  b5 {[%clk 0:02:53]} 8. Bb3 {[%clk 0:02:30]}  Bg4 {[%clk 0:02:48]} 9. c3 {[%clk 0:02:21]}  e6 {[%clk 0:02:48]} 10. h3 {[%clk 0:01:56]}  Bh5 {[%clk 0:02:44]} 11. Bf4 {[%clk 0:01:39]}  Nd5 {[%clk 0:02:34]} 12. Bg3 {[%clk 0:01:34]}  Bd6 {[%clk 0:02:33]} 13. Bxd5 {[%clk 0:00:59]}  exd5 {[%clk 0:02:31]} 14. Bxd6 {[%clk 0:00:59]}  Qxd6 {[%clk 0:02:30]} 15. Qe2+ {[%clk 0:00:52]}  Ne7 {[%clk 0:02:27]} 16. Qe5 {[%clk 0:00:52]}  O-O-O {[%clk 0:01:53]} 17. Qxd6 {[%clk 0:00:49]}  Rxd6 {[%clk 0:01:51]} 18. Nbd2 {[%clk 0:00:49]}  Re6+ {[%clk 0:01:51]} 19. Kd1 {[%clk 0:00:41]}  g5 {[%clk 0:01:43]} 20. Re1 {[%clk 0:00:38]}  Rxe1+ {[%clk 0:01:36]} 21. Kxe1 {[%clk 0:00:38]}  h6 {[%clk 0:01:36]} 22. Kf1 {[%clk 0:00:32]}  Bg6 {[%clk 0:01:27]} 23. Re1 {[%clk 0:00:30]}  Kd7 {[%clk 0:01:23]} 24. Ne5+ {[%clk 0:00:28]}  Kd6 {[%clk 0:01:21]} 25. Nxg6 {[%clk 0:00:24]}  Nxg6 {[%clk 0:01:20]} 26. g3 {[%clk 0:00:23]}  Rc8 {[%clk 0:01:14]} 27. Nb3 {[%clk 0:00:17]}  h5 {[%clk 0:01:09]} 28. Nc5 {[%clk 0:00:16]}  Ra8 {[%clk 0:01:02]} 29. Kg2 {[%clk 0:00:13]}  a5 {[%clk 0:01:02]} 30. b3 {[%clk 0:00:10]}  b4 {[%clk 0:00:56]} 31. c4 {[%clk 0:00:09]}  Ne7 {[%clk 0:00:50]} 32. Kf3 {[%clk 0:00:07]}  dxc4 {[%clk 0:00:47]} 33. bxc4 {[%clk 0:00:08]}  a4 {[%clk 0:00:48]} 34. Ne4+ {[%clk 0:00:08]}  Kd7 {[%clk 0:00:46]} 35. Nf6+ {[%clk 0:00:07]}  Kd8 {[%clk 0:00:42]} 36. Nxh5 {[%clk 0:00:07]}  b3 {[%clk 0:00:41]} 37. axb3 {[%clk 0:00:07]}  axb3 {[%clk 0:00:41]} 38. Rb1 {[%clk 0:00:07]}  Rc8 {[%clk 0:00:40]} 39. c5 {[%clk 0:00:07]}  Rb8 {[%clk 0:00:39]} 40. Nf6 {[%clk 0:00:07]}  Nc6 {[%clk 0:00:38]} 41. Ke4 {[%clk 0:00:06]}  Na5 {[%clk 0:00:38]} 42. Nd5 {[%clk 0:00:05]}  Nc4 {[%clk 0:00:36]} 43. Kd3 {[%clk 0:00:04]}  Na3 {[%clk 0:00:35]} 44. Rb2 {[%clk 0:00:04]}  Nc2 {[%clk 0:00:33]} 45. Nb6 {[%clk 0:00:04]}  Nb4+ {[%clk 0:00:26]} 46. Kc4 {[%clk 0:00:04]}  Nc6 {[%clk 0:00:25]} 47. Rxb3 {[%clk 0:00:03]}  Ke8 {[%clk 0:00:22]} 48. f4 {[%clk 0:00:04]}  Rd8 {[%clk 0:00:21]} 49. d5 {[%clk 0:00:04]}  Ne7 {[%clk 0:00:21]} 50. d6 {[%clk 0:00:04]}  Nf5 {[%clk 0:00:21]} 51. g4 {[%clk 0:00:04]}  Nxd6+ {[%clk 0:00:19]} 52. cxd6 {[%clk 0:00:04]}  Rxd6 {[%clk 0:00:19]} 53. Nd5 {[%clk 0:00:04]}  Rc6+ {[%clk 0:00:19]} 54. Kd4 {[%clk 0:00:04]}  gxf4 {[%clk 0:00:18]} 55. Nxf4 {[%clk 0:00:04]}  Rd6+ {[%clk 0:00:18]} 56. Nd5 {[%clk 0:00:05]}  Rd7 {[%clk 0:00:18]} 57. Re3+ {[%clk 0:00:05]}  Kf8 {[%clk 0:00:18]} 58. Rf3 {[%clk 0:00:05]}  Kg7 {[%clk 0:00:18]} 59. Ke5 {[%clk 0:00:05]}  Rd8 {[%clk 0:00:17]} 60. Nf6 {[%clk 0:00:04]}  Ra8 {[%clk 0:00:17]} 61. Nh5+ {[%clk 0:00:04]}  Kf8 {[%clk 0:00:16]} 62. Kf4 {[%clk 0:00:04]}  Ra4+ {[%clk 0:00:16]} 63. Kg3 {[%clk 0:00:05]}  Ra5 {[%clk 0:00:16]} 64. Kh4 {[%clk 0:00:05]}  Ra4 {[%clk 0:00:16]} 65. Kg5 {[%clk 0:00:05]}  Ra5+ {[%clk 0:00:16]} 66. Rf5 {[%clk 0:00:05]}  Ra2 {[%clk 0:00:16]} 67. Nf4 {[%clk 0:00:05]}  Ra3 {[%clk 0:00:16]} 68. h4 {[%clk 0:00:05]}  Ra6 {[%clk 0:00:15]} 69. h5 {[%clk 0:00:05]}  Kg7 {[%clk 0:00:13]} 70. h6+ {[%clk 0:00:04]}  Rxh6 {[%clk 0:00:10]} 71. Rxf7+ {[%clk 0:00:04]}  Kxf7 {[%clk 0:00:10]} 72. Kxh6 {[%clk 0:00:05]}  Kf6 {[%clk 0:00:10]} 73. g5+ {[%clk 0:00:04]}  Kf5 {[%clk 0:00:09]} 74. g6 {[%clk 0:00:04]}  Kxf4 {[%clk 0:00:10]} 75. g7 {[%clk 0:00:04]}  Ke4 {[%clk 0:00:10]} 76. g8=Q {[%clk 0:00:05]}  Kd3 {[%clk 0:00:11]} 77. Qe6 {[%clk 0:00:05]}  Kd4 {[%clk 0:00:11]} 78. Kg6 {[%clk 0:00:04]}  Kc3 {[%clk 0:00:12]} 79. Qd5 {[%clk 0:00:05]}  Kb4 {[%clk 0:00:11]} 80. Qc6 {[%clk 0:00:05]}  Kb3 {[%clk 0:00:12]} 81. Qc5 {[%clk 0:00:05]}  Kb2 {[%clk 0:00:11]} 82. Qc4 {[%clk 0:00:06]} 1-0

[Event "January 9 Early 2024"]
[Site "https://www.chess.com"]
[Date "2024.01.11"]
[Round "10"]
[White "Golubovic, Erik"]
[Black "Shuvalova, Polina"]
[Result "1-0"]
[Board "202"]
[TimeControl "180+1"]
[WhiteFideId "14586908"]
[BlackFideId "24171760"]
[WhiteElo "2316"]
[BlackElo "2708"]
[WhiteTeam "CRO"]
[BlackTeam "RUS"]
[WhiteClock "0:00:06"]
[BlackClock "0:00:03"]

1. d4 {[%clk 0:03:00]}  Nf6 {[%clk 0:02:59]} 2. c4 {[%clk 0:03:00]}  e6 {[%clk 0:02:59]} 3. Nf3 {[%clk 0:02:59]}  d5 {[%clk 0:02:59]} 4. g3 {[%clk 0:02:59]}  Be7 {[%clk 0:02:58]} 5. Bg2 {[%clk 0:03:00]}  O-O {[%clk 0:02:59]} 6. O-O {[%clk 0:03:00]}  c6 {[%clk 0:03:00]} 7. Qc2 {[%clk 0:03:00]}  b6 {[%clk 0:03:00]} 8. Nbd2 {[%clk 0:02:59]}  c5 {[%clk 0:03:01]} 9. cxd5 {[%clk 0:02:53]}  exd5 {[%clk 0:03:02]} 10. dxc5 {[%clk 0:02:35]}  bxc5 {[%clk 0:03:00]} 11. Nb3 {[%clk 0:02:32]}  Na6 {[%clk 0:02:50]} 12. Bg5 {[%clk 0:02:27]}  Nb4 {[%clk 0:02:46]} 13. Qc1 {[%clk 0:02:20]}  Bf5 {[%clk 0:02:45]} 14. Bxf6 {[%clk 0:02:13]}  Bxf6 {[%clk 0:02:45]} 15. Qxc5 {[%clk 0:02:09]}  Nc2 {[%clk 0:02:40]} 16. Rad1 {[%clk 0:02:02]}  Rc8 {[%clk 0:02:18]} 17. Qxd5 {[%clk 0:01:56]}  Qxd5 {[%clk 0:02:18]} 18. Rxd5 {[%clk 0:01:57]}  Be6 {[%clk 0:02:17]} 19. Ra5 {[%clk 0:01:50]}  Rc7 {[%clk 0:02:09]} 20. e3 {[%clk 0:01:44]}  Bxb2 {[%clk 0:02:07]} 21. Nfd4 {[%clk 0:01:41]}  Nxd4 {[%clk 0:02:03]} 22. Nxd4 {[%clk 0:01:40]}  Bc4 {[%clk 0:01:45]} 23. Rb1 {[%clk 0:01:28]}  Bc3 {[%clk 0:01:37]} 24. Ra3 {[%clk 0:01:21]}  Bxd4 {[%clk 0:01:32]} 25. exd4 {[%clk 0:01:20]}  Be6 {[%clk 0:01:02]} 26. d5 {[%clk 0:01:17]}  Bf5 {[%clk 0:01:00]} 27. Rd1 {[%clk 0:01:11]}  Rd8 {[%clk 0:01:00]} 28. h4 {[%clk 0:01:10]}  g6 {[%clk 0:00:55]} 29. Rd2 {[%clk 0:00:59]}  Rd6 {[%clk 0:00:55]} 30. Bf3 {[%clk 0:00:56]}  h5 {[%clk 0:00:54]} 31. Kg2 {[%clk 0:00:56]}  Kg7 {[%clk 0:00:54]} 32. Rd4 {[%clk 0:00:49]}  Rb6 {[%clk 0:00:38]} 33. Rd2 {[%clk 0:00:44]}  Kf6 {[%clk 0:00:36]} 34. Ra5 {[%clk 0:00:33]}  Rd6 {[%clk 0:00:34]} 35. Ra3 {[%clk 0:00:29]}  Ke7 {[%clk 0:00:32]} 36. Re3+ {[%clk 0:00:27]}  Kd7 {[%clk 0:00:31]} 37. Re5 {[%clk 0:00:25]}  Rb6 {[%clk 0:00:25]} 38. Bxh5 {[%clk 0:00:22]}  f6 {[%clk 0:00:26]} 39. Rxf5 {[%clk 0:00:22]}  gxf5 {[%clk 0:00:26]} 40. Bg6 {[%clk 0:00:22]}  Kd6 {[%clk 0:00:26]} 41. Bxf5 {[%clk 0:00:21]}  Rc5 {[%clk 0:00:22]} 42. Be6 {[%clk 0:00:18]}  Rc1 {[%clk 0:00:14]} 43. h5 {[%clk 0:00:18]}  Rbb1 {[%clk 0:00:14]} 44. g4 {[%clk 0:00:13]}  Rg1+ {[%clk 0:00:13]} 45. Kf3 {[%clk 0:00:13]}  Rbc1 {[%clk 0:00:14]} 46. Rb2 {[%clk 0:00:14]}  Rc3+ {[%clk 0:00:14]} 47. Ke2 {[%clk 0:00:12]}  Ke5 {[%clk 0:00:09]} 48. Rd2 {[%clk 0:00:12]}  Rcc1 {[%clk 0:00:05]} 49. Bf5 {[%clk 0:00:10]}  Kd6 {[%clk 0:00:03]} 50. h6 {[%clk 0:00:10]}  Rge1+ {[%clk 0:00:02]} 51. Kf3 {[%clk 0:00:09]}  Rh1 {[%clk 0:00:03]} 52. h7 {[%clk 0:00:09]}  Rc3+ {[%clk 0:00:03]} 53. Kg2 {[%clk 0:00:08]}  Rch3 {[%clk 0:00:04]} 54. Rb2 {[%clk 0:00:07]}  Kxd5 {[%clk 0:00:03]} 55. Rb7 {[%clk 0:00:07]}  R1h2+ {[%clk 0:00:03]} 56. Kf1 {[%clk 0:00:06]}  a6 {[%clk 0:00:04]} 57. Ra7 {[%clk 0:00:06]}  Rh1+ {[%clk 0:00:02]} 58. Ke2 {[%clk 0:00:06]}  Ke5 {[%clk 0:00:02]} 59. Rxa6 {[%clk 0:00:06]}  Kf4 {[%clk 0:00:02]} 60. Ra4+ {[%clk 0:00:05]}  Kg5 {[%clk 0:00:03]} 61. Ra8 {[%clk 0:00:05]}  R1h2 {[%clk 0:00:02]} 62. Rg8+ {[%clk 0:00:05]}  Kf4 {[%clk 0:00:02]} 63. a4 {[%clk 0:00:05]}  Rh1 {[%clk 0:00:02]} 64. a5 {[%clk 0:00:05]}  R1h2 {[%clk 0:00:02]} 65. a6 {[%clk 0:00:06]}  Rf3 {[%clk 0:00:03]} 66. h8=Q {[%clk 0:00:03]}  Rhxf2+ {[%clk 0:00:04]} 67. Ke1 {[%clk 0:00:03]}  Rf1+ {[%clk 0:00:04]} 68. Kd2 {[%clk 0:00:03]}  R1f2+ {[%clk 0:00:04]} 69. Kc1 {[%clk 0:00:03]}  Rf1+ {[%clk 0:00:04]} 70. Kb2 {[%clk 0:00:03]}  R3f2+ {[%clk 0:00:02]} 71. Bc2 {[%clk 0:00:04]}  Re2 {[%clk 0:00:03]} 72. Qxf6+ {[%clk 0:00:04]}  Ke3 {[%clk 0:00:03]} 73. Qxf1 {[%clk 0:00:05]}  Rd2 {[%clk 0:00:02]} 74. Re8+ {[%clk 0:00:04]}  Kd4 {[%clk 0:00:01]} 75. Qf4+ {[%clk 0:00:05]}  Kc5 {[%clk 0:00:02]} 76. Rc8+ {[%clk 0:00:04]}  Kb6 {[%clk 0:00:03]} 77. Qb8+ {[%clk 0:00:04]}  Ka5 {[%clk 0:00:03]} 78. Rc5+ {[%clk 0:00:04]}  Kxa6 {[%clk 0:00:02]} 79. Qb5+ {[%clk 0:00:04]}  Ka7 {[%clk 0:00:03]} 80. Rc7+ {[%clk 0:00:05]}  Ka8 {[%clk 0:00:03]} 81. Qb7# {[%clk 0:00:06]} 1-0